[Event "Titled Tuesday Blitz February 14 Late 2023"]
[White "Lopez Idarraga, Daniel Eduardo"]
[Black "Yuan, Qingyu"]
[WhiteFideId "4405501"]
[BlackFideId "8609772"]
[WhiteElo "2009"]
[BlackElo "2373"]
[Result "1/2-1/2"]
[Round "09"]
[TimeControl "180+2"]
[Date "2023.02.14"]
[WhiteClock "0:00:05"]
[BlackClock "0:00:10"]

1. e4 {[%clk 0:02:58]}  c5 {[%clk 0:02:59]} 2. d4 {[%clk 0:02:57]}  cxd4 {[%clk 0:03:00]} 3. c3 {[%clk 0:02:58]}  d3 {[%clk 0:02:57]} 4. c4 {[%clk 0:02:57]}  Nc6 {[%clk 0:02:53]} 5. Bxd3 {[%clk 0:02:58]}  g6 {[%clk 0:02:54]} 6. h3 {[%clk 0:02:58]}  Bg7 {[%clk 0:02:54]} 7. Ne2 {[%clk 0:02:58]}  e6 {[%clk 0:02:52]} 8. Nbc3 {[%clk 0:02:57]}  Nge7 {[%clk 0:02:52]} 9. Be3 {[%clk 0:02:57]}  O-O {[%clk 0:02:50]} 10. Qd2 {[%clk 0:02:55]}  d5 {[%clk 0:02:49]} 11. cxd5 {[%clk 0:02:54]}  exd5 {[%clk 0:02:49]} 12. Bh6 {[%clk 0:02:48]}  dxe4 {[%clk 0:02:35]} 13. Nxe4 {[%clk 0:02:33]}  Ne5 {[%clk 0:01:55]} 14. Bb5 {[%clk 0:02:06]}  Qxd2+ {[%clk 0:01:43]} 15. Bxd2 {[%clk 0:02:06]}  a6 {[%clk 0:01:43]} 16. Ba4 {[%clk 0:01:40]}  Nd3+ {[%clk 0:01:41]} 17. Kf1 {[%clk 0:01:40]}  Nxb2 {[%clk 0:01:38]} 18. Bb3 {[%clk 0:01:38]}  b5 {[%clk 0:01:11]} 19. Rc1 {[%clk 0:01:33]}  Bb7 {[%clk 0:01:06]} 20. Nd6 {[%clk 0:01:14]}  Bd5 {[%clk 0:01:06]} 21. Bxd5 {[%clk 0:00:46]}  Nxd5 {[%clk 0:01:06]} 22. Ba5 {[%clk 0:00:47]}  Be5 {[%clk 0:00:53]} 23. Rc2 {[%clk 0:00:43]}  Nd3 {[%clk 0:00:36]} 24. Ne4 {[%clk 0:00:40]}  Rac8 {[%clk 0:00:34]} 25. Rd2 {[%clk 0:00:37]}  N3f4 {[%clk 0:00:30]} 26. g3 {[%clk 0:00:34]}  Nxe2 {[%clk 0:00:22]} 27. Rxd5 {[%clk 0:00:34]}  Bc3 {[%clk 0:00:17]} 28. Bb6 {[%clk 0:00:31]}  Rc6 {[%clk 0:00:13]} 29. Kxe2 {[%clk 0:00:27]}  Re8 {[%clk 0:00:11]} 30. Kf3 {[%clk 0:00:23]}  Rxe4 {[%clk 0:00:08]} 31. Kxe4 {[%clk 0:00:21]}  Rxb6 {[%clk 0:00:08]} 32. Rc1 {[%clk 0:00:21]}  b4 {[%clk 0:00:07]} 33. Ra5 {[%clk 0:00:19]}  Re6+ {[%clk 0:00:07]} 34. Kd3 {[%clk 0:00:18]}  Rf6 {[%clk 0:00:08]} 35. f4 {[%clk 0:00:18]}  Rd6+ {[%clk 0:00:08]} 36. Kc4 {[%clk 0:00:17]}  Kg7 {[%clk 0:00:08]} 37. Rf1 {[%clk 0:00:16]}  h5 {[%clk 0:00:08]} 38. Rf3 {[%clk 0:00:16]}  Be1 {[%clk 0:00:06]} 39. g4 {[%clk 0:00:15]}  hxg4 {[%clk 0:00:06]} 40. hxg4 {[%clk 0:00:16]}  Rc6+ {[%clk 0:00:06]} 41. Kb3 {[%clk 0:00:16]}  Re6 {[%clk 0:00:06]} 42. Rd3 {[%clk 0:00:15]}  Bc3 {[%clk 0:00:06]} 43. a3 {[%clk 0:00:15]}  Rb6 {[%clk 0:00:05]} 44. axb4 {[%clk 0:00:14]}  Bxb4 {[%clk 0:00:06]} 45. Rad5 {[%clk 0:00:14]}  a5 {[%clk 0:00:06]} 46. Ka4 {[%clk 0:00:14]}  Re6 {[%clk 0:00:06]} 47. f5 {[%clk 0:00:14]}  Re4 {[%clk 0:00:05]} 48. R3d4 {[%clk 0:00:12]}  Re1 {[%clk 0:00:05]} 49. fxg6 {[%clk 0:00:11]}  Kxg6 {[%clk 0:00:05]} 50. Kb5 {[%clk 0:00:11]}  f6 {[%clk 0:00:05]} 51. Rf5 {[%clk 0:00:11]}  Bc3 {[%clk 0:00:05]} 52. Rc4 {[%clk 0:00:09]}  Rb1+ {[%clk 0:00:04]} 53. Ka4 {[%clk 0:00:07]}  Be5 {[%clk 0:00:03]} 54. Kxa5 {[%clk 0:00:06]}  Rg1 {[%clk 0:00:03]} 55. Kb5 {[%clk 0:00:06]}  Rxg4 {[%clk 0:00:03]} 56. Rxg4+ {[%clk 0:00:05]}  Kxf5 {[%clk 0:00:04]} 57. Rg1 {[%clk 0:00:05]}  Ke6 {[%clk 0:00:04]} 58. Rf1 {[%clk 0:00:06]}  Kd5 {[%clk 0:00:05]} 59. Rd1+ {[%clk 0:00:05]}  Ke4 {[%clk 0:00:05]} 60. Kc4 {[%clk 0:00:04]}  Kf4 {[%clk 0:00:05]} 61. Re1 {[%clk 0:00:04]}  Kf5 {[%clk 0:00:05]} 62. Kd3 {[%clk 0:00:04]}  Ke6 {[%clk 0:00:05]} 63. Ke4 {[%clk 0:00:05]}  Kd6 {[%clk 0:00:04]} 64. Kf5 {[%clk 0:00:04]}  Kd5 {[%clk 0:00:05]} 65. Rd1+ {[%clk 0:00:04]}  Kc5 {[%clk 0:00:05]} 66. Rd8 {[%clk 0:00:04]}  Kc4 {[%clk 0:00:06]} 67. Rf8 {[%clk 0:00:04]}  Kd5 {[%clk 0:00:06]} 68. Rd8+ {[%clk 0:00:03]}  Kc4 {[%clk 0:00:07]} 69. Ke4 {[%clk 0:00:04]}  Kc5 {[%clk 0:00:07]} 70. Rc8+ {[%clk 0:00:04]}  Kd6 {[%clk 0:00:07]} 71. Re8 {[%clk 0:00:04]}  Kd7 {[%clk 0:00:08]} 72. Rf8 {[%clk 0:00:04]}  Ke7 {[%clk 0:00:08]} 73. Ra8 {[%clk 0:00:04]}  Kd6 {[%clk 0:00:08]} 74. Kf5 {[%clk 0:00:04]}  Kd5 {[%clk 0:00:09]} 75. Rd8+ {[%clk 0:00:04]}  Kc6 {[%clk 0:00:09]} 76. Ke6 {[%clk 0:00:04]}  Kc5 {[%clk 0:00:10]} 77. Rc8+ {[%clk 0:00:04]}  Kd4 {[%clk 0:00:10]} 78. Kf5 {[%clk 0:00:05]}  Kd5 {[%clk 0:00:10]} 79. Rd8+ {[%clk 0:00:05]} 1/2-1/2


[Site "https://www.chess.com"]

[Event "Titled Tuesday Blitz February 14 Late 2023"]
[White "Toncheva, Nadya"]
[Black "Bjelobrk, Igor"]
[WhiteFideId "2924056"]
[BlackFideId "4300726"]
[WhiteElo "2295"]
[BlackElo "2403"]
[Result "0-1"]
[Round "09"]
[TimeControl "180+2"]
[Date "2023.02.14"]
[WhiteClock "0:00:02"]
[BlackClock "0:00:13"]

1. e4 {[%clk 0:03:00]}  e6 {[%clk 0:02:59]} 2. d4 {[%clk 0:03:00]}  d5 {[%clk 0:02:55]} 3. Nd2 {[%clk 0:03:01]}  Be7 {[%clk 0:02:50]} 4. Ngf3 {[%clk 0:03:00]}  Nf6 {[%clk 0:02:48]} 5. e5 {[%clk 0:03:00]}  Nfd7 {[%clk 0:02:47]} 6. Bd3 {[%clk 0:03:01]}  c5 {[%clk 0:02:43]} 7. c3 {[%clk 0:03:01]}  Nc6 {[%clk 0:02:43]} 8. O-O {[%clk 0:03:00]}  a5 {[%clk 0:02:42]} 9. Re1 {[%clk 0:02:58]}  cxd4 {[%clk 0:02:42]} 10. cxd4 {[%clk 0:02:58]}  g5 {[%clk 0:02:41]} 11. Qa4 {[%clk 0:02:48]}  g4 {[%clk 0:02:36]} 12. Bb5 {[%clk 0:02:22]}  gxf3 {[%clk 0:02:35]} 13. Nxf3 {[%clk 0:02:23]}  Rg8 {[%clk 0:02:30]} 14. Be3 {[%clk 0:02:10]}  Nb6 {[%clk 0:02:22]} 15. Qc2 {[%clk 0:02:08]}  Rg7 {[%clk 0:02:19]} 16. Bh6 {[%clk 0:01:55]}  Rg6 {[%clk 0:02:18]} 17. Bxc6+ {[%clk 0:01:46]}  bxc6 {[%clk 0:02:18]} 18. Qxc6+ {[%clk 0:01:46]}  Bd7 {[%clk 0:02:17]} 19. Qc1 {[%clk 0:01:47]}  Rc8 {[%clk 0:02:15]} 20. Qf4 {[%clk 0:01:45]}  Na4 {[%clk 0:02:08]} 21. Rab1 {[%clk 0:01:30]}  Rc2 {[%clk 0:02:04]} 22. h4 {[%clk 0:01:09]}  Nxb2 {[%clk 0:02:00]} 23. Re3 {[%clk 0:01:08]}  Nc4 {[%clk 0:01:35]} 24. Reb3 {[%clk 0:01:07]}  Na3 {[%clk 0:01:25]} 25. Rc1 {[%clk 0:00:51]}  Rxc1+ {[%clk 0:01:24]} 26. Qxc1 {[%clk 0:00:52]}  Nc4 {[%clk 0:01:25]} 27. h5 {[%clk 0:00:50]}  Rg8 {[%clk 0:01:23]} 28. Qb1 {[%clk 0:00:45]}  Bc8 {[%clk 0:00:46]} 29. Qxh7 {[%clk 0:00:34]}  Kd7 {[%clk 0:00:46]} 30. Qxf7 {[%clk 0:00:29]}  Qe8 {[%clk 0:00:44]} 31. Qf4 {[%clk 0:00:17]}  Qxh5 {[%clk 0:00:43]} 32. Nd2 {[%clk 0:00:12]}  Qd1+ {[%clk 0:00:38]} 33. Nf1 {[%clk 0:00:12]}  Qg4 {[%clk 0:00:32]} 34. Qh2 {[%clk 0:00:09]}  Rh8 {[%clk 0:00:30]} 35. Rg3 {[%clk 0:00:09]}  Qh4 {[%clk 0:00:28]} 36. Rh3 {[%clk 0:00:09]}  Rxh6 {[%clk 0:00:26]} 37. Rxh4 {[%clk 0:00:08]}  Rxh4 {[%clk 0:00:27]} 38. Qg3 {[%clk 0:00:08]}  Rxd4 {[%clk 0:00:27]} 39. Qb3 {[%clk 0:00:07]}  Nxe5 {[%clk 0:00:21]} 40. Qb5+ {[%clk 0:00:07]}  Nc6 {[%clk 0:00:21]} 41. Ne3 {[%clk 0:00:06]}  Rb4 {[%clk 0:00:21]} 42. Qd3 {[%clk 0:00:06]}  Rb6 {[%clk 0:00:19]} 43. Nc4 {[%clk 0:00:05]}  Rb4 {[%clk 0:00:16]} 44. Ne3 {[%clk 0:00:04]}  Bd6 {[%clk 0:00:16]} 45. g3 {[%clk 0:00:04]}  Kc7 {[%clk 0:00:16]} 46. Kg2 {[%clk 0:00:04]}  Bd7 {[%clk 0:00:16]} 47. Qc3 {[%clk 0:00:04]}  d4 {[%clk 0:00:16]} 48. Qc1 {[%clk 0:00:04]}  dxe3 {[%clk 0:00:17]} 49. Qxe3 {[%clk 0:00:04]}  Nd4 {[%clk 0:00:17]} 50. Qc3+ {[%clk 0:00:03]}  Bc6+ {[%clk 0:00:17]} 51. Kh3 {[%clk 0:00:04]}  e5 {[%clk 0:00:18]} 52. Qc1 {[%clk 0:00:03]}  Rb8 {[%clk 0:00:18]} 53. Kg4 {[%clk 0:00:03]}  Rg8+ {[%clk 0:00:17]} 54. Kh5 {[%clk 0:00:03]}  Rh8+ {[%clk 0:00:18]} 55. Kg6 {[%clk 0:00:03]}  Rh2 {[%clk 0:00:17]} 56. f4 {[%clk 0:00:03]}  exf4 {[%clk 0:00:16]} 57. gxf4 {[%clk 0:00:03]}  Rf2 {[%clk 0:00:15]} 58. f5 {[%clk 0:00:03]}  Rxf5 {[%clk 0:00:15]} 59. Qc4 {[%clk 0:00:02]}  Rf4 {[%clk 0:00:14]} 60. Kg5 {[%clk 0:00:01]}  Re4 {[%clk 0:00:14]} 61. Kg6 {[%clk 0:00:01]}  Rf4 {[%clk 0:00:13]} 62. Qf7+ {[%clk 0:00:02]} 0-1


[Site "https://www.chess.com"]

[Event "Titled Tuesday Blitz February 14 Late 2023"]
[White "Machidon, Cristi"]
[Black "Rorrer, Grayson"]
[WhiteFideId "13904590"]
[BlackFideId "30944996"]
[WhiteElo "2301"]
[BlackElo "2263"]
[Result "0-1"]
[Round "09"]
[TimeControl "180+2"]
[Date "2023.02.14"]
[WhiteClock "0:00:08"]
[BlackClock "0:00:35"]

1. d4 {[%clk 0:02:59]}  Nf6 {[%clk 0:02:53]} 2. c4 {[%clk 0:02:59]}  e6 {[%clk 0:02:53]} 3. Nc3 {[%clk 0:02:59]}  Bb4 {[%clk 0:02:51]} 4. Bd2 {[%clk 0:02:59]}  O-O {[%clk 0:02:50]} 5. e3 {[%clk 0:02:59]}  d5 {[%clk 0:02:50]} 6. Rc1 {[%clk 0:02:58]}  b6 {[%clk 0:02:50]} 7. a3 {[%clk 0:02:58]}  Bxc3 {[%clk 0:02:49]} 8. Bxc3 {[%clk 0:02:59]}  Bb7 {[%clk 0:02:50]} 9. Nf3 {[%clk 0:03:00]}  Nbd7 {[%clk 0:02:50]} 10. cxd5 {[%clk 0:02:59]}  exd5 {[%clk 0:02:49]} 11. Bd3 {[%clk 0:02:57]}  c5 {[%clk 0:02:50]} 12. O-O {[%clk 0:02:57]}  Re8 {[%clk 0:02:50]} 13. dxc5 {[%clk 0:02:57]}  Nxc5 {[%clk 0:02:48]} 14. Bb1 {[%clk 0:02:48]}  Rc8 {[%clk 0:02:46]} 15. Bd4 {[%clk 0:02:38]}  Nce4 {[%clk 0:02:45]} 16. Qa4 {[%clk 0:02:24]}  Rxc1 {[%clk 0:02:33]} 17. Rxc1 {[%clk 0:02:25]}  a6 {[%clk 0:02:34]} 18. Qc2 {[%clk 0:02:11]}  Qd7 {[%clk 0:02:25]} 19. Bxb6 {[%clk 0:01:56]}  Ng4 {[%clk 0:02:25]} 20. Rf1 {[%clk 0:01:55]}  Rc8 {[%clk 0:02:21]} 21. Qd1 {[%clk 0:01:54]}  Qb5 {[%clk 0:01:55]} 22. Bd4 {[%clk 0:01:53]}  a5 {[%clk 0:01:53]} 23. Bd3 {[%clk 0:01:41]}  Qc6 {[%clk 0:01:46]} 24. Ne5 {[%clk 0:01:38]}  Nxe5 {[%clk 0:01:41]} 25. Bxe5 {[%clk 0:01:39]}  d4 {[%clk 0:01:41]} 26. Qg4 {[%clk 0:01:38]}  f6 {[%clk 0:01:23]} 27. Bxd4 {[%clk 0:01:38]}  Nd2 {[%clk 0:01:16]} 28. Rd1 {[%clk 0:01:28]}  Qc1 {[%clk 0:01:16]} 29. h3 {[%clk 0:01:24]}  Nf3+ {[%clk 0:01:16]} 30. Qxf3 {[%clk 0:01:12]}  Bxf3 {[%clk 0:01:15]} 31. Rxc1 {[%clk 0:01:12]}  Rxc1+ {[%clk 0:01:16]} 32. Kh2 {[%clk 0:01:12]}  Bd5 {[%clk 0:01:15]} 33. Bc3 {[%clk 0:01:07]}  a4 {[%clk 0:01:13]} 34. e4 {[%clk 0:01:02]}  Bc6 {[%clk 0:01:10]} 35. Kg3 {[%clk 0:00:58]}  Kf7 {[%clk 0:01:10]} 36. Kf4 {[%clk 0:00:52]}  Rg1 {[%clk 0:01:06]} 37. g3 {[%clk 0:00:48]}  g5+ {[%clk 0:01:05]} 38. Kg4 {[%clk 0:00:34]}  Bd7+ {[%clk 0:00:53]} 39. Kf3 {[%clk 0:00:34]}  Bxh3 {[%clk 0:00:51]} 40. Bb5 {[%clk 0:00:34]}  h5 {[%clk 0:00:47]} 41. Bxa4 {[%clk 0:00:32]}  h4 {[%clk 0:00:47]} 42. Bb3+ {[%clk 0:00:26]}  Ke7 {[%clk 0:00:43]} 43. e5 {[%clk 0:00:21]}  fxe5 {[%clk 0:00:40]} 44. Bxe5 {[%clk 0:00:20]}  Be6 {[%clk 0:00:38]} 45. Bc2 {[%clk 0:00:11]}  h3 {[%clk 0:00:38]} 46. g4 {[%clk 0:00:11]}  Bxg4+ {[%clk 0:00:37]} 47. Ke3 {[%clk 0:00:08]}  Re1+ {[%clk 0:00:34]} 48. Kd4 {[%clk 0:00:08]}  Rxe5 {[%clk 0:00:35]} 49. Kxe5 {[%clk 0:00:08]}  Bf3 {[%clk 0:00:35]} 0-1


[Site "https://www.chess.com"]

[Event "Titled Tuesday Blitz February 14 Late 2023"]
[White "Martinez Ramirez, Lennis"]
[Black "Novikov, Evgenij"]
[WhiteFideId "3509079"]
[BlackFideId "4125380"]
[WhiteElo "2426"]
[BlackElo "2276"]
[Result "1-0"]
[Round "09"]
[TimeControl "180+2"]
[Date "2023.02.14"]
[WhiteClock "0:00:38"]
[BlackClock "0:00:02"]

1. d4 {[%clk 0:03:00]}  d5 {[%clk 0:02:56]} 2. c4 {[%clk 0:03:01]}  e6 {[%clk 0:02:55]} 3. Nf3 {[%clk 0:03:01]}  Nf6 {[%clk 0:02:53]} 4. g3 {[%clk 0:02:58]}  Be7 {[%clk 0:02:52]} 5. Bg2 {[%clk 0:02:58]}  O-O {[%clk 0:02:52]} 6. O-O {[%clk 0:02:59]}  c6 {[%clk 0:02:51]} 7. Qc2 {[%clk 0:02:59]}  b6 {[%clk 0:02:48]} 8. Nbd2 {[%clk 0:02:56]}  Bb7 {[%clk 0:02:47]} 9. b3 {[%clk 0:02:55]}  Nbd7 {[%clk 0:02:46]} 10. Bb2 {[%clk 0:02:56]}  Rc8 {[%clk 0:02:46]} 11. Rac1 {[%clk 0:02:55]}  Qc7 {[%clk 0:02:41]} 12. e4 {[%clk 0:02:53]}  Qb8 {[%clk 0:02:37]} 13. e5 {[%clk 0:02:52]}  Ne8 {[%clk 0:02:36]} 14. cxd5 {[%clk 0:02:43]}  cxd5 {[%clk 0:02:36]} 15. Qd3 {[%clk 0:02:43]}  Rxc1 {[%clk 0:02:32]} 16. Rxc1 {[%clk 0:02:41]}  Nc7 {[%clk 0:02:32]} 17. h4 {[%clk 0:02:40]}  Ba6 {[%clk 0:02:26]} 18. Qb1 {[%clk 0:02:36]}  Rc8 {[%clk 0:02:22]} 19. Nf1 {[%clk 0:02:35]}  Nb5 {[%clk 0:02:17]} 20. Ne3 {[%clk 0:02:35]}  Na3 {[%clk 0:02:12]} 21. Qa1 {[%clk 0:02:34]}  Bd3 {[%clk 0:02:03]} 22. Ne1 {[%clk 0:02:27]}  Bg6 {[%clk 0:01:47]} 23. Bf1 {[%clk 0:02:27]}  f6 {[%clk 0:01:27]} 24. Ba6 {[%clk 0:02:21]}  Rc7 {[%clk 0:01:20]} 25. f4 {[%clk 0:02:06]}  fxe5 {[%clk 0:01:18]} 26. fxe5 {[%clk 0:02:03]}  b5 {[%clk 0:01:07]} 27. Rxc7 {[%clk 0:01:58]}  Qxc7 {[%clk 0:01:08]} 28. Qc1 {[%clk 0:01:58]}  Qxc1 {[%clk 0:01:01]} 29. Bxc1 {[%clk 0:01:59]}  Nb1 {[%clk 0:00:52]} 30. Bxb5 {[%clk 0:01:57]}  Nb6 {[%clk 0:00:52]} 31. Bb2 {[%clk 0:01:47]}  Nd2 {[%clk 0:00:48]} 32. Bd3 {[%clk 0:01:35]}  Bh5 {[%clk 0:00:30]} 33. N3g2 {[%clk 0:01:25]}  Nf3+ {[%clk 0:00:20]} 34. Nxf3 {[%clk 0:01:23]}  Bxf3 {[%clk 0:00:21]} 35. Nf4 {[%clk 0:01:23]}  Bg4 {[%clk 0:00:20]} 36. Kf2 {[%clk 0:01:23]}  g6 {[%clk 0:00:18]} 37. Bc3 {[%clk 0:01:22]}  Kf7 {[%clk 0:00:17]} 38. a4 {[%clk 0:01:22]}  Bf5 {[%clk 0:00:13]} 39. Ke3 {[%clk 0:01:21]}  h6 {[%clk 0:00:12]} 40. Bxf5 {[%clk 0:01:16]}  gxf5 {[%clk 0:00:12]} 41. Kd3 {[%clk 0:01:13]}  Nd7 {[%clk 0:00:11]} 42. Bd2 {[%clk 0:01:12]}  Nb8 {[%clk 0:00:11]} 43. b4 {[%clk 0:01:11]}  a6 {[%clk 0:00:10]} 44. Kc2 {[%clk 0:01:10]}  Nc6 {[%clk 0:00:09]} 45. Ne2 {[%clk 0:01:05]}  Nxb4+ {[%clk 0:00:07]} 46. Kb3 {[%clk 0:01:06]}  Nc6 {[%clk 0:00:07]} 47. Bxh6 {[%clk 0:01:05]}  Bd8 {[%clk 0:00:06]} 48. h5 {[%clk 0:00:58]}  Bb6 {[%clk 0:00:06]} 49. Kc3 {[%clk 0:00:58]}  Kg8 {[%clk 0:00:03]} 50. Bg5 {[%clk 0:00:57]}  Kg7 {[%clk 0:00:02]} 51. Kd3 {[%clk 0:00:56]}  Nb4+ {[%clk 0:00:02]} 52. Kd2 {[%clk 0:00:56]}  Nc6 {[%clk 0:00:02]} 53. Be3 {[%clk 0:00:55]}  Ba5+ {[%clk 0:00:03]} 54. Kd3 {[%clk 0:00:46]}  Bb6 {[%clk 0:00:03]} 55. Nf4 {[%clk 0:00:45]}  Kf7 {[%clk 0:00:01]} 56. h6 {[%clk 0:00:40]}  Nb4+ {[%clk 0:00:01]} 57. Ke2 {[%clk 0:00:39]}  Nc6 {[%clk 0:00:02]} 58. Nxe6 {[%clk 0:00:38]} 1-0


[Site "https://www.chess.com"]

[Event "Titled Tuesday Blitz February 14 Late 2023"]
[White "Moral Garcia, Serafin"]
[Black "Rios Escobar, Adan"]
[WhiteFideId "2201925"]
[BlackFideId "3403645"]
[WhiteElo "2238"]
[BlackElo "2234"]
[Result "1-0"]
[Round "09"]
[TimeControl "180+2"]
[Date "2023.02.14"]
[WhiteClock "0:00:08"]
[BlackClock "0:00:02"]

1. c4 {[%clk 0:03:00]}  Nf6 {[%clk 0:02:57]} 2. Nc3 {[%clk 0:03:00]}  g6 {[%clk 0:02:57]} 3. g3 {[%clk 0:02:59]}  Bg7 {[%clk 0:02:57]} 4. Bg2 {[%clk 0:03:00]}  O-O {[%clk 0:02:58]} 5. e3 {[%clk 0:02:52]}  c5 {[%clk 0:02:56]} 6. Nge2 {[%clk 0:02:52]}  h5 {[%clk 0:02:34]} 7. a3 {[%clk 0:02:47]}  h4 {[%clk 0:02:33]} 8. O-O {[%clk 0:02:44]}  Nc6 {[%clk 0:02:31]} 9. Rb1 {[%clk 0:02:43]}  Rb8 {[%clk 0:02:30]} 10. b4 {[%clk 0:02:32]}  cxb4 {[%clk 0:02:29]} 11. axb4 {[%clk 0:02:32]}  a6 {[%clk 0:02:29]} 12. d4 {[%clk 0:02:31]}  b5 {[%clk 0:02:28]} 13. d5 {[%clk 0:02:15]}  Ne5 {[%clk 0:02:21]} 14. c5 {[%clk 0:02:15]}  d6 {[%clk 0:02:03]} 15. c6 {[%clk 0:02:12]}  Bf5 {[%clk 0:02:03]} 16. Ra1 {[%clk 0:02:10]}  Qc8 {[%clk 0:01:56]} 17. Nd4 {[%clk 0:02:03]}  Bh3 {[%clk 0:01:54]} 18. f3 {[%clk 0:02:01]}  Bxg2 {[%clk 0:01:52]} 19. Kxg2 {[%clk 0:02:00]}  Nc4 {[%clk 0:01:50]} 20. e4 {[%clk 0:01:55]}  e6 {[%clk 0:01:35]} 21. Re1 {[%clk 0:01:39]}  exd5 {[%clk 0:01:33]} 22. exd5 {[%clk 0:01:37]}  Nb6 {[%clk 0:01:32]} 23. Nb3 {[%clk 0:01:29]}  h3+ {[%clk 0:01:26]} 24. Kh1 {[%clk 0:01:28]}  Qf5 {[%clk 0:01:07]} 25. g4 {[%clk 0:01:18]}  Nxg4 {[%clk 0:00:58]} 26. fxg4 {[%clk 0:01:17]}  Qf2 {[%clk 0:00:58]} 27. Ra2 {[%clk 0:01:17]}  Qh4 {[%clk 0:00:50]} 28. Ne4 {[%clk 0:01:14]}  f6 {[%clk 0:00:38]} 29. Rxa6 {[%clk 0:01:12]}  Nxd5 {[%clk 0:00:38]} 30. Qxd5+ {[%clk 0:01:10]}  Kh7 {[%clk 0:00:37]} 31. Ng3 {[%clk 0:00:59]}  Rbe8 {[%clk 0:00:32]} 32. Be3 {[%clk 0:00:43]}  Qxg4 {[%clk 0:00:30]} 33. c7 {[%clk 0:00:39]}  Re5 {[%clk 0:00:28]} 34. Qd2 {[%clk 0:00:25]}  Rfe8 {[%clk 0:00:21]} 35. Rxd6 {[%clk 0:00:14]}  Qf3+ {[%clk 0:00:20]} 36. Kg1 {[%clk 0:00:14]}  Rxe3 {[%clk 0:00:21]} 37. Rxe3 {[%clk 0:00:14]}  Rxe3 {[%clk 0:00:20]} 38. Qf2 {[%clk 0:00:10]}  Re1+ {[%clk 0:00:19]} 39. Nf1 {[%clk 0:00:10]}  Qg4+ {[%clk 0:00:08]} 40. Qg3 {[%clk 0:00:09]}  Qe2 {[%clk 0:00:03]} 41. Qxh3+ {[%clk 0:00:09]}  Bh6 {[%clk 0:00:02]} 42. Rd7+ {[%clk 0:00:08]} 1-0


[Site "https://www.chess.com"]

[Event "Titled Tuesday Blitz February 14 Late 2023"]
[White "Sztokbant, Bernardo Vainzoff"]
[Black "Di Berardino, Diego Rafael"]
[WhiteFideId "2115956"]
[BlackFideId "2105446"]
[WhiteElo "2213"]
[BlackElo "2479"]
[Result "1-0"]
[Round "09"]
[TimeControl "180+2"]
[Date "2023.02.14"]
[WhiteClock "0:00:07"]
[BlackClock "0:00:01"]

1. e4 {[%clk 0:02:21]}  c5 {[%clk 0:02:53]} 2. Nf3 {[%clk 0:02:20]}  e6 {[%clk 0:02:49]} 3. d4 {[%clk 0:02:21]}  cxd4 {[%clk 0:02:50]} 4. Nxd4 {[%clk 0:02:22]}  a6 {[%clk 0:02:50]} 5. Bd3 {[%clk 0:02:22]}  Nf6 {[%clk 0:02:48]} 6. Nc3 {[%clk 0:02:23]}  d6 {[%clk 0:02:47]} 7. O-O {[%clk 0:02:22]}  g6 {[%clk 0:02:47]} 8. f4 {[%clk 0:02:18]}  Bg7 {[%clk 0:02:46]} 9. Be3 {[%clk 0:02:16]}  O-O {[%clk 0:02:45]} 10. Kh1 {[%clk 0:02:14]}  Qc7 {[%clk 0:02:35]} 11. a4 {[%clk 0:02:06]}  Nc6 {[%clk 0:02:26]} 12. Nb3 {[%clk 0:02:02]}  b6 {[%clk 0:02:21]} 13. Qe1 {[%clk 0:01:59]}  Nb4 {[%clk 0:02:17]} 14. Qh4 {[%clk 0:01:54]}  Bb7 {[%clk 0:02:00]} 15. Rae1 {[%clk 0:01:46]}  Rae8 {[%clk 0:01:50]} 16. Bd4 {[%clk 0:01:26]}  e5 {[%clk 0:01:29]} 17. fxe5 {[%clk 0:01:11]}  dxe5 {[%clk 0:01:29]} 18. Be3 {[%clk 0:01:08]}  Nxd3 {[%clk 0:01:25]} 19. cxd3 {[%clk 0:01:08]}  Re6 {[%clk 0:01:10]} 20. a5 {[%clk 0:00:52]}  bxa5 {[%clk 0:00:46]} 21. Nc5 {[%clk 0:00:52]}  Rc6 {[%clk 0:00:41]} 22. N3a4 {[%clk 0:00:46]}  Bc8 {[%clk 0:00:38]} 23. Bg5 {[%clk 0:00:44]}  Nh5 {[%clk 0:00:33]} 24. Be3 {[%clk 0:00:40]}  Nf4 {[%clk 0:00:33]} 25. Qf2 {[%clk 0:00:30]}  Ne6 {[%clk 0:00:26]} 26. Nxe6 {[%clk 0:00:23]}  Bxe6 {[%clk 0:00:27]} 27. Nc5 {[%clk 0:00:23]}  Bc8 {[%clk 0:00:24]} 28. Rc1 {[%clk 0:00:20]}  h5 {[%clk 0:00:21]} 29. Rc3 {[%clk 0:00:19]}  Kh7 {[%clk 0:00:19]} 30. Rfc1 {[%clk 0:00:19]}  f5 {[%clk 0:00:17]} 31. exf5 {[%clk 0:00:18]}  Rxf5 {[%clk 0:00:13]} 32. Qg3 {[%clk 0:00:18]}  Qf7 {[%clk 0:00:11]} 33. h3 {[%clk 0:00:17]}  e4 {[%clk 0:00:09]} 34. d4 {[%clk 0:00:13]}  Qf6 {[%clk 0:00:05]} 35. Nxe4 {[%clk 0:00:12]}  Rf1+ {[%clk 0:00:04]} 36. Kh2 {[%clk 0:00:12]}  Qe7 {[%clk 0:00:03]} 37. Ng5+ {[%clk 0:00:11]}  Kg8 {[%clk 0:00:02]} 38. Rxc6 {[%clk 0:00:10]}  Rxc1 {[%clk 0:00:01]} 39. Rxc1 {[%clk 0:00:11]}  Bf5 {[%clk 0:00:01]} 40. Qb8+ {[%clk 0:00:08]}  Bf8 {[%clk 0:00:01]} 41. Bf4 {[%clk 0:00:07]}  h4 {[%clk 0:00:01]} 42. Qe5 {[%clk 0:00:07]}  Qd7 {[%clk 0:00:01]} 43. Rc7 {[%clk 0:00:07]} 1-0


[Site "https://www.chess.com"]

[Event "Titled Tuesday Blitz February 14 Late 2023"]
[White "Drnovsek, Gal"]
[Black "Koellner, Ruben Gideon"]
[WhiteFideId "14607077"]
[BlackFideId "12993093"]
[WhiteElo "2397"]
[BlackElo "2426"]
[Result "1-0"]
[Round "09"]
[TimeControl "180+2"]
[Date "2023.02.14"]
[WhiteClock "0:00:11"]
[BlackClock "0:00:01"]

1. e4 {[%clk 0:01:50]}  d6 {[%clk 0:02:51]} 2. d4 {[%clk 0:01:49]}  Nf6 {[%clk 0:02:50]} 3. Nc3 {[%clk 0:01:49]}  e5 {[%clk 0:02:50]} 4. Nf3 {[%clk 0:01:48]}  Nbd7 {[%clk 0:02:51]} 5. g4 {[%clk 0:01:47]}  h6 {[%clk 0:02:49]} 6. Rg1 {[%clk 0:01:45]}  c6 {[%clk 0:02:48]} 7. h4 {[%clk 0:01:41]}  exd4 {[%clk 0:02:48]} 8. Nxd4 {[%clk 0:01:34]}  Ne5 {[%clk 0:02:48]} 9. g5 {[%clk 0:01:34]}  hxg5 {[%clk 0:02:48]} 10. hxg5 {[%clk 0:01:34]}  Nfg4 {[%clk 0:02:48]} 11. Be2 {[%clk 0:01:24]}  Nh2 {[%clk 0:02:48]} 12. Bf4 {[%clk 0:01:15]}  Qb6 {[%clk 0:02:42]} 13. Bxe5 {[%clk 0:00:47]}  dxe5 {[%clk 0:02:39]} 14. Nb3 {[%clk 0:00:48]}  Rh3 {[%clk 0:02:11]} 15. g6 {[%clk 0:00:40]}  fxg6 {[%clk 0:01:53]} 16. Qd2 {[%clk 0:00:34]}  Nf3+ {[%clk 0:00:58]} 17. Bxf3 {[%clk 0:00:34]}  Rxf3 {[%clk 0:00:59]} 18. O-O-O {[%clk 0:00:35]}  Rf6 {[%clk 0:00:37]} 19. f4 {[%clk 0:00:23]}  exf4 {[%clk 0:00:21]} 20. e5 {[%clk 0:00:23]}  Rf7 {[%clk 0:00:20]} 21. Kb1 {[%clk 0:00:20]}  Bf5 {[%clk 0:00:16]} 22. e6 {[%clk 0:00:21]}  Re7 {[%clk 0:00:13]} 23. Qxf4 {[%clk 0:00:19]}  Rd8 {[%clk 0:00:11]} 24. Rxd8+ {[%clk 0:00:19]}  Qxd8 {[%clk 0:00:12]} 25. Nd4 {[%clk 0:00:18]}  Qc7 {[%clk 0:00:11]} 26. Qf3 {[%clk 0:00:14]}  Qb6 {[%clk 0:00:10]} 27. Nce2 {[%clk 0:00:12]}  c5 {[%clk 0:00:04]} 28. Nxf5 {[%clk 0:00:11]}  gxf5 {[%clk 0:00:05]} 29. Qxf5 {[%clk 0:00:11]}  Qxe6 {[%clk 0:00:04]} 30. Qh5+ {[%clk 0:00:12]}  Qf7 {[%clk 0:00:02]} 31. Qh2 {[%clk 0:00:11]}  Qe6 {[%clk 0:00:01]} 32. Qb8+ {[%clk 0:00:11]}  Kf7 {[%clk 0:00:01]} 33. Rf1+ {[%clk 0:00:11]}  Kg6 {[%clk 0:00:01]} 34. Qxf8 {[%clk 0:00:11]}  Qxe2 {[%clk 0:00:01]} 35. Rg1+ {[%clk 0:00:12]}  Kh5 {[%clk 0:00:01]} 36. Qh8# {[%clk 0:00:11]} 1-0


[Site "https://www.chess.com"]